{"text_format":"1","workbook":"xlsx","n_sheets":4,"sheets":["Αναθέσεις","Transaction type","Servicer change","Portfolio type"],"not_rendered":{"charts":0,"images":1,"macros":0,"external_links":3,"defined_names":9,"comments":0,"pivot_tables":0},"unopened":[],"bounds":{"document_bytes":16777216,"sheet_cells":100000,"rows_first":2000,"rows_last":500,"rows_between":2000,"halvings":0,"cell_chars":16384,"cell_head_chars":4096},"cells_cut":0,"cells_raw":0,"read":"whole","date_system":"1900"}

{"sheet":"Αναθέσεις","index":0,"n_rows":36,"n_cols":49,"rows_kept":36,"cut":false,"hidden":false,"merged":[[10,17,10,24],[12,18,12,23],[23,2,23,3],[24,16,27,16],[24,11,27,11],[24,10,27,10],[24,15,27,15],[24,13,27,13],[24,12,27,12],[24,9,27,9],[24,2,27,3],[24,18,26,19],[24,17,27,17],[24,14,27,14],[24,46,27,46],[24,30,24,39],[26,31,27,31],[26,32,27,32],[26,33,27,33],[26,34,27,34],[26,37,27,37],[25,33,25,37],[26,35,26,36],[24,47,27,47],[24,48,27,48],[24,20,25,29],[24,40,27,40],[24,41,27,41],[24,42,27,42],[24,43,27,43],[24,44,27,44],[25,31,25,32],[26,21,26,26],[26,27,26,29],[26,20,27,20],[25,38,25,39],[26,38,27,38],[26,39,27,39],[24,45,27,45],[28,2,28,3],[24,8,27,8],[24,7,27,7],[24,6,27,6],[24,5,27,5],[24,4,27,4]]}
[]
[]
[]
[]
[]
[]
[]
[]
[]
[]
[null,null,null,null,null,null,null,null,null,null,null,null,null,null,null,null,null,"ΔΙΕΥΘΥΝΣΗ ΕΠΟΠΤΕΙΑΣ ΠΙΣΤΩΤΙΚΟΥ ΣΥΣΤΗΜΑΤΟΣ"]
[]
[null,null,null,null,null,null,null,null,null,null,null,null,null,null,null,null,null,null,"Πίνακας 1. Νέες Αναθέσεις Συμβάσεων Διαχείρισης \n[Table 1. New Assignments of Servicing Agreements]"]
[]
[]
[null,null,null,null,null,null,null,null,null,null,null,null,null,null,null,null,null,null,null,null,"Κωδικός Διαχειριστή Πιστώσεων :"]
[null,null,null,null,null,null,null,null,null,null,null,null,null,null,null,null,null,null,null,null,"Διαχειριστής Πιστώσεων :"]
[null,null,null,null,null,null,null,null,null,null,null,null,null,null,null,null,null,null,null,null,"Ημερομηνία Στοιχείων :"]
[null,null,null,null,null,null,null,null,null,null,null,null,null,null,null,null,null,null,null,null,"Αρμόδιος Υπάλληλος :"]
[null,null,null,null,null,null,null,null,null,null,null,null,null,null,null,null,null,null,null,null,"Αριθμός Τηλεφώνου :"]
[null,null,null,null,null,null,null,null,null,null,null,null,null,null,null,null,null,null,null,null,"Ημερομηνία Συμπλήρωσης :"]
[null,null,null,null,null,null,null,null,null,null,null,null,null,null,null,null,null,null,null,null,"Διορθωτική Αποστολή :"]
[]
[null,null,"(ποσά σε χιλιάδες €)/(amounts in thousand €)"]
[null,null,null,null,"Ημερομηνία Σύμβασης Διαχείρισης \n[Servicing Agreement Date]","Ημερομηνία Έναρξης Διαχείρισης \n[Start Date of Servicing]","Διάρκεια \n[Term]","Είδος Συναλλαγής \n[Transaction Type]","Αριθμός Δανείων \n[Number of Loans]","Όνομα Χαρτοφυλακίου \n[Portfolio Name]","Επωνυμία Ιδρύματος ή Χρηματοδοτικού Ιδρύματος \n[Institution or Financial Institution Name]","Κράτος-Μέλος Καταγωγής Ιδρύματος ή Χρηματοδοτικού Ιδρύματος \n[Member State of Institution or Financial Institution] ","Επωνυμία Αγοραστή Πιστώσεων \n[Credit Purchaser Νame] ","Χώρα Καταγωγής Αγοραστή Πιστώσεων \n[Home Country of Credit Purchaser]","Επωνυμία Αντιπροσώπου Αγοραστή Πιστώσεων \n[Name of Representative of a Third-Country Credit Purchaser] ","Κράτος-Μέλος Καταγωγής Αντιπροσώπου Αγοραστή Πιστώσεων από Τρίτη Χώρα \n[Member State of Representative of a Third-Country Credit Purchaser]","Αλλαγή Διαχειριστή Πιστώσεων \n[Change of Credit Servicer]","Προηγούμενος Διαχειριστής Πιστώσεων \n[Credit Servicer Βefore the Τransaction]","Τιτλοποίηση \n[Securitization]",null,"Συνολική Νομική Απαίτηση \n[Total Legal Claim]",null,null,null,null,null,null,null,null,null,"Αξία Εξασφαλίσεων\n[Collateral Value]",null,null,null,null,null,null,null,null,null,"Δραστηριότητες Διαχείρισης Πιστώσεων \n[Credit Servicing Activities]","Αμοιβή Διαχείρισης \n[Servicing Fees]","Έξοδα που Mετακυλίονται προς τον Αγοραστή Πιστώσεων\n[Pass-Τhrough Εxpenses]","Εκπροσώπηση του Αγοραστή Πιστώσεων έναντι του Δανειολήπτη \n[Credit Purchaser Representation in Relation to the Borrower]","Δήλωση Συμμόρφωσης με το Εθνικό και το Ενωσιακό Δίκαιο \n[Compliance with Union and National Law]","Ρήτρα Δίκαιης και Επιμελούς Μεταχείρισης των Δανειοληπτών \n[Clause for Fair and Diligent Treatment of Borrowers]","Ρήτρα Ενημέρωσης του Αγοραστή Πιστώσεων πριν από την Εξωτερική Ανάθεση Δραστηριότητας Διαχείρισης Πιστώσεων \n[Clause for Notification of the Credit Purchaser prior to Outsourcing any Credit Servicing Activities]","Ρήτρα Πρόβλεψης Πολιτικής Διαμεσολάβησης για Πώληση Απαιτήσεων από Πιστώσεις στη Δευτερογενή Αγορά, σε Περίπτωση Ανάληψης Ρόλου Συντονιστή Πώλησης\n[Clause for Policy on Secondary Market Sales in Case the Credit Servicer Coordinates Such Sales]","Πρόβλεψη για Ασφαλή και Απρόσκοπτη Πρόσβαση ή Μεταβίβαση όλων των Στοιχείων και Πληροφοριών των Υπό Διαχείριση Απαιτήσεων \n[Provision for Secure and Seamless Access or Transfer of any Data Concerning the Serviced Loans]"]
[null,null,null,null,null,null,null,null,null,null,null,null,null,null,null,null,null,null,null,null,null,null,null,null,null,null,null,null,null,null,null,"Δάνεια Εξασφαλισμένα με Ακίνητη Περιουσία \n[Loans Collateralized by Immovable Property]",null,"Άλλα Εξασφαλισμένα Δάνεια \n[Other Collateralized Loans]",null,null,null,null,"Απαιτήσεις από Ληφθείσες Χρηματοοικονομικές Εγγυήσεις\n[Financial Guarantees Received]"]
[null,null,null,null,null,null,null,null,null,null,null,null,null,null,null,null,null,null,null,null,null,"Υπόλοιπο Απαιτήσεων \n[Balance]",null,null,null,null,null,"Λοιπές Απαιτήσεις Εκτός Ισολογισμού \n[Other Off-Balance Sheet Exposures]",null,null,null,"Οικιστικά Ακίνητα\n[Residential Ιmmovable Property]","Εμπορικά Ακίνητα\n[Commercial Immovable Property]","Διαθέσιμα, Καταθέσεις, (Εκδοθέντες Xρεωστικοί Tίτλοι) \n[Cash, Deposits, (Debt Securities Issued)]","Κινητά Περιουσιακά Στοιχεία \n[Movable Property]","Μετοχικό Kεφάλαιο και Xρεωστικοί Tίτλοι  \n[Equity and Debt Securities]",null,"Λοιπά\n[Rest]",null,"εκ των οποίων: Εγγυήσεις Ελληνικού Δημοσίου \n[of which: Greek Government Guarantees]"]
[null,null,null,null,null,null,null,null,null,null,null,null,null,null,null,null,null,null,"Όνομα Τιτλοποίησης \n[Securitization Name]","Επωνυμία Ιδρύματος Αρχικής Προέλευσης \n[Originator Institution Name]",null,null,"Εξυπηρετούμενα Ανοίγματα \n[Performing Exposures]","Μη Εξυπηρετούμενα Ανοίγματα \n[Non Performing Exposures]","Aβέβαιης Eίσπραξης (0-90 ημέρες)\n [UTP (0 -90 dpd)]","Καθυστέρηση 91+ ημέρες \n[91+ dpd]","Καταγγελμένα \n[Denounced]",null,"Μη Λογιστικοποιημένοι Τόκοι \n[Off-balance Sheet Interest]","Λογιστικές Διαγραφές \n[Accounting Write-offs]",null,null,null,null,null,null,"εκ των οποίων: Oμόλογα και Έντοκα Γραμμάτια Ελληνικού Δημοσίου \n[of which: Treasury Bills & Greek Government Bonds]"]
[null,null,null,null,"010","020","030","040","050","060","070","080","090","100","110","120","130","140","150","160","170","180","190","200","210","220","230","240","250","260","270","280","290","300","310","320","330","340","350","360","370","380","390","400","410","420","430","440","450"]
[null,null,"010","ΣΥΝΟΛΟ ΧΑΡΤΟΦΥΛΑΚΙΩΝ [TOTAL]",null,null,null,null,{"$f":"SUM(I31:I33)","v":0},null,null,null,null,null,null,null,null,null,null,null,{"$f":"SUM(U31:U33)","v":0},{"$f":"SUM(V31:V33)","v":0},0,0,0,0,0,{"$f":"SUM(AB31:AB33)","v":0},0,0,0,0,0,0,0,0,0,0,0,0]
[null,null,"020","Στεγαστικά Δάνεια [Residential Loans]",null,null,null,null,null,null,null,null,null,null,null,null,null,null,null,null,{"$f":"V31+AB31","v":0},{"$f":"SUM(W31:X31)","v":0},null,{"$f":"SUM(Y31:AA31)","v":0},null,null,null,{"$f":"SUM(AC31:AD31)","v":0},null,null,{"$f":"AF31+AG31+AH31+AI31+AJ31+AL31+AM31","v":0}]
[null,null,"030","Καταναλωτικά Δάνεια [Consumer Loans]",null,null,null,null,null,null,null,null,null,null,null,null,null,null,null,null,{"$f":"V32+AB32","v":0},{"$f":"SUM(W32:X32)","v":0},null,{"$f":"SUM(Y32:AA32)","v":0},null,null,null,{"$f":"SUM(AC32:AD32)","v":0},null,null,{"$f":"AF32+AG32+AH32+AI32+AJ32+AL32+AM32","v":0}]
[null,null,"040","ΣΥΝΟΛΟ Επιχειρηματικών Δανείων \n[TOTAL Business Loans]",null,null,null,null,{"$f":"SUM(I34:I36)","v":0},null,null,null,null,null,null,null,null,null,null,null,{"$f":"SUM(U34:U36)","v":0},{"$f":"SUM(V34:V36)","v":0},0,0,0,0,0,{"$f":"SUM(AB34:AB36)","v":0},0,0,0,0,0,0,0,0,0,0,0,0]
[null,null,"050","Ελεύθεροι Επαγγελματίες και Πολύ Μικρές Επιχειρήσεις\n[Small Business & Professionals - SBPs]",null,null,null,null,null,null,null,null,null,null,null,null,null,null,null,null,{"$f":"V34+AB34","v":0},{"$f":"SUM(W34:X34)","v":0},null,{"$f":"SUM(Y34:AA34)","v":0},null,null,null,{"$f":"SUM(AC34:AD34)","v":0},null,null,{"$f":"AF34+AG34+AH34+AI34+AJ34+AL34+AM34","v":0}]
[null,null,"060","Μικρές και Μεσαίες Επιχειρήσεις \n[Small & Medium Enterprises - SMEs]",null,null,null,null,null,null,null,null,null,null,null,null,null,null,null,null,{"$f":"V35+AB35","v":0},{"$f":"SUM(W35:X35)","v":0},null,0,null,null,null,{"$f":"SUM(AC35:AD35)","v":0},null,null,{"$f":"AF35+AG35+AH35+AI35+AJ35+AL35+AM35","v":0}]
[null,null,"070","Μεγάλες Επιχειρήσεις [Corporate]",null,null,null,null,null,null,null,null,null,null,null,null,null,null,null,null,{"$f":"V36+AB36","v":0},{"$f":"SUM(W36:X36)","v":0},null,0,null,null,null,{"$f":"SUM(AC36:AD36)","v":0},null,null,{"$f":"AF36+AG36+AH36+AI36+AJ36+AL36+AM36","v":0}]

{"sheet":"Transaction type","index":1,"n_rows":3,"n_cols":2,"rows_kept":3,"cut":false,"hidden":true,"merged":[]}
["Είδος συναλλαγής [Transaction type]"]
[1,"Χαρτοφυλάκιο [Portfolio]"]
[2,"Μεμονωμένη Συναλλαγή [Single ticket]"]

{"sheet":"Servicer change","index":2,"n_rows":3,"n_cols":1,"rows_kept":3,"cut":false,"hidden":true,"merged":[]}
["Αλλαγή Διαχειριστή Πιστώσεων \n[Change of Credit Servicer]"]
["ΝΑΙ"]
["ΟΧΙ"]

{"sheet":"Portfolio type","index":3,"n_rows":6,"n_cols":1,"rows_kept":6,"cut":false,"hidden":true,"merged":[]}
["Είδος χαρτοφυλακίου [Portfolio type]"]
["Στεγαστικά δάνεια [Residential loans]"]
["Καταναλωτικά δάνεια [Consumer loans]"]
["Επιχειρηματικά δάνεια_Ελεύθεροι επαγγελματίες & Πολύ μικρές επιχειρήσεις [Business loans_Small business & Professionals (SBPs)]"]
["Επιχειρηματικά δάνεια_Μικρές & Μεσαίες επιχειρήσεις [Business loans_Small & medium enterprises (SMEs)]"]
["Επιχειρηματικά δάνεια_Μεγάλες επιχειρήσεις [Business loans_Corporate]"]